[Event "Schack-SM 2023: Veteran-SM 65+"]
[Site "Helsingborg Arena, Mellersta Stenbocksgatan 14, Helsingborg, Sweden"]
[Date "2023.07.05"]
[Round "5.1"]
[White "Malmdin, Nils-Ake"]
[Black "Ivarsson, Torbjorn"]
[Result "0-1"]
[TimeControl "90 minutes for 40 moves + 30 minutes for the rest of games + 30 seconds per move from move one."]
[WhiteTitle "FM"]
[WhiteElo "2091"]
[BlackElo "2073"]

1. e4 {[%clk 01:30:39]} {[%emt 00:00:16]} e6 {[%clk 01:31:08]} {[%emt
00:00:23]} 2. d4 {[%clk 01:30:46]} {[%emt 00:00:22]} d5 {[%clk 01:31:29]}
{[%emt 00:00:10]} 3. Nc3 {[%clk 01:31:01]} {[%emt 00:00:14]} Nf6 {[%clk
01:31:38]} {[%emt 00:00:22]} 4. exd5 {[%clk 01:31:07]} {[%emt 00:00:23]} exd5
{[%clk 01:31:33]} {[%emt 00:00:36]} 5. Bg5 {[%clk 01:31:24]} {[%emt 00:00:12]}
Be7 {[%clk 01:28:52]} {[%emt 00:03:12]} 6. Qd2 {[%clk 01:29:08]} {[%emt
00:02:45]} Bf5 {[%clk 01:27:38]} {[%emt 00:01:45]} 7. f3 {[%clk 01:27:14]}
{[%emt 00:02:22]} h6 {[%clk 01:24:11]} {[%emt 00:03:58]} 8. Bf4 {[%clk
01:26:52]} {[%emt 00:00:51]} c6 {[%clk 01:19:53]} {[%emt 00:04:50]} 9. O-O-O
{[%clk 01:25:23]} {[%emt 00:01:58]} Na6 {[%clk 01:19:27]} {[%emt 00:00:58]} 10.
g4 {[%clk 01:20:49]} {[%emt 00:05:02]} Bg6 {[%clk 01:19:50]} {[%emt 00:00:08]}
11. Bd3 {[%clk 01:07:27]} {[%emt 00:13:50]} Bxd3 {[%clk 01:19:20]} {[%emt
00:00:28]} 12. Qxd3 {[%clk 01:07:57]} Qd7 {[%clk 01:18:44]} {[%emt 00:01:40]}
13. h4 {[%clk 01:06:20]} {[%emt 00:02:06]} O-O-O {[%clk 01:18:49]} {[%emt
00:00:23]} 14. Nh3 {[%clk 01:05:49]} {[%emt 00:01:03]} Ne8 {[%clk 01:14:49]}
{[%emt 00:04:30]} 15. g5 {[%clk 01:04:53]} {[%emt 00:01:27]} Nd6 {[%clk
01:14:48]} {[%emt 00:00:31]} 16. Rde1 {[%clk 00:59:19]} {[%emt 00:06:03]} Rde8
{[%clk 01:09:37]} {[%emt 00:05:42]} 17. a3 {[%clk 00:53:27]} {[%emt 00:06:21]}
Nc7 {[%clk 01:09:26]} {[%emt 00:00:42]} 18. gxh6 {[%clk 00:51:04]} {[%emt
00:02:52]} gxh6 {[%clk 01:09:09]} {[%emt 00:00:48]} 19. h5 {[%clk 00:50:43]}
{[%emt 00:00:51]} Nf5 {[%clk 01:01:44]} {[%emt 00:07:55]} 20. Re5 {[%clk
00:37:52]} {[%emt 00:13:21]} Nd6 {[%clk 00:59:26]} {[%emt 00:02:48]} 21. Na4
{[%clk 00:27:16]} {[%emt 00:11:05]} Ne6 {[%clk 00:55:54]} {[%emt 00:04:03]} 22.
Bd2 {[%clk 00:23:48]} {[%emt 00:03:57]} Bf6 {[%clk 00:55:30]} {[%emt 00:00:55]}
23. Nc5 {[%clk 00:23:46]} {[%emt 00:00:31]} Nxc5 {[%clk 00:51:09]} {[%emt
00:04:52]} 24. Rxe8+ {[%clk 00:24:04]} {[%emt 00:00:12]} Rxe8 {[%clk 00:51:17]}
{[%emt 00:00:22]} 25. dxc5 {[%clk 00:24:21]} {[%emt 00:00:13]} Nc4 {[%clk
00:50:01]} {[%emt 00:01:45]} 26. c3 {[%clk 00:18:56]} {[%emt 00:05:55]} Ne5
{[%clk 00:48:44]} {[%emt 00:01:47]} 27. Qc2 {[%clk 00:15:59]} {[%emt 00:03:25]}
Nxf3 {[%clk 00:46:14]} {[%emt 00:03:03]} 28. Bxh6 {[%clk 00:16:01]} {[%emt
00:00:28]} Rh8 {[%clk 00:45:51]} {[%emt 00:00:53]} 29. Bf4 {[%clk 00:15:43]}
{[%emt 00:00:46]} Rxh5 {[%clk 00:43:46]} {[%emt 00:02:37]} 30. Qg2 {[%clk
00:14:48]} {[%emt 00:01:23]} Ne5 {[%clk 00:42:45]} {[%emt 00:01:32]} 31. Qg8+
{[%clk 00:12:59]} {[%emt 00:02:19]} Qd8 {[%clk 00:35:12]} {[%emt 00:08:04]} 32.
Qg3 {[%clk 00:12:36]} {[%emt 00:00:52]} Qh8 {[%clk 00:34:34]} {[%emt 00:01:09]}
33. Kb1 {[%clk 00:11:33]} {[%emt 00:01:30]} Qh7+ {[%clk 00:33:39]} {[%emt
00:01:27]} 34. Ka1 {[%clk 00:11:18]} {[%emt 00:00:38]} Qg6 {[%clk 00:33:04]}
{[%emt 00:01:13]} 35. Rg1 {[%clk 00:10:25]} {[%emt 00:01:23]} Qxg3 {[%clk
00:32:15]} {[%emt 00:01:19]} 36. Rxg3 {[%clk 00:10:52]} {[%emt 00:00:03]} Ng6
{[%clk 00:31:59]} {[%emt 00:00:46]} 37. Be3 {[%clk 00:05:41]} {[%emt 00:05:41]}
Rf5 {[%clk 00:31:50]} {[%emt 00:00:38]} 38. Nf2 {[%clk 00:03:25]} {[%emt
00:02:47]} Bh4 {[%clk 00:31:09]} {[%emt 00:01:11]} 39. Rg2 {[%clk 00:03:53]}
Rf3 {[%clk 00:27:19]} {[%emt 00:04:20]} 40. Bd4 {[%clk 00:03:29]} {[%emt
00:00:53]} Kd8 {[%clk 00:23:23]} {[%emt 00:04:28]} 41. Ka2 {[%clk 00:30:14]}
{[%emt 00:03:44]} Bxf2 {[%clk 00:49:45]} {[%emt 00:04:08]} 42. Bxf2 {[%clk
00:30:38]} {[%emt 00:00:04]} Kd7 {[%clk 00:45:54]} {[%emt 00:04:25]} 43. Bd4
{[%clk 00:30:10]} {[%emt 00:00:56]} Rf4 {[%clk 00:43:41]} {[%emt 00:02:43]} 44.
a4 {[%clk 00:27:15]} {[%emt 00:03:24]} Re4 {[%clk 00:37:28]} {[%emt 00:06:44]}
45. Ka3 {[%clk 00:25:47]} {[%emt 00:01:59]} Ke6 {[%clk 00:36:48]} {[%emt
00:01:10]} 46. Rh2 {[%clk 00:23:13]} {[%emt 00:03:02]} Ke7 {[%clk 00:30:38]}
{[%emt 00:06:42]} 47. Rg2 {[%clk 00:23:03]} {[%emt 00:00:39]} Nf8 {[%clk
00:25:18]} {[%emt 00:05:50]} 48. Bg1 {[%clk 00:19:48]} {[%emt 00:03:44]} Rh4
{[%clk 00:24:50]} {[%emt 00:01:00]} 49. Re2+ {[%clk 00:19:59]} {[%emt
00:00:19]} Ne6 {[%clk 00:24:46]} {[%emt 00:00:34]} 50. Bh2 {[%clk 00:20:10]}
{[%emt 00:00:19]} f5 {[%clk 00:24:38]} {[%emt 00:00:38]} 51. Bd6+ {[%clk
00:20:13]} {[%emt 00:00:27]} Kf6 {[%clk 00:24:20]} {[%emt 00:00:48]} 52. Be5+
{[%clk 00:19:31]} {[%emt 00:01:12]} Kf7 {[%clk 00:24:27]} {[%emt 00:00:23]} 53.
Bd6 {[%clk 00:18:39]} {[%emt 00:01:22]} f4 {[%clk 00:24:23]} {[%emt 00:00:34]}
54. Rf2 {[%clk 00:16:36]} {[%emt 00:02:32]} Kf6 {[%clk 00:24:09]} {[%emt
00:00:44]} 55. b4 {[%clk 00:16:08]} {[%emt 00:00:58]} Kf5 {[%clk 00:24:13]}
{[%emt 00:00:27]} 56. b5 {[%clk 00:15:33]} {[%emt 00:01:05]} Rh3 {[%clk
00:24:08]} {[%emt 00:00:34]} 57. bxc6 {[%clk 00:14:58]} {[%emt 00:01:05]} bxc6
{[%clk 00:24:28]} {[%emt 00:00:11]} 58. Kb4 {[%clk 00:14:35]} {[%emt 00:00:53]}
f3 {[%clk 00:23:20]} {[%emt 00:01:38]} 59. Bb8 {[%clk 00:05:09]} {[%emt
00:09:57]} Ke4 {[%clk 00:16:10]} {[%emt 00:07:39]} 60. Bxa7 {[%clk 00:03:38]}
{[%emt 00:02:00]} Rh1 {[%clk 00:14:24]} {[%emt 00:02:16]} 61. Bb8 {[%clk
00:03:13]} {[%emt 00:00:55]} Rb1+ {[%clk 00:14:25]} 0-1

[ePGN "0.1;DGT LiveChess/2.2.5"]

[Event "Schack-SM 2023: Veteran-SM 50+"]
[Site "Helsingborg Arena, Mellersta Stenbocksgatan 14, Helsingborg, Sweden"]
[Date "2023.07.05"]
[Round "5.1"]
[White "Karlsson, Ulf"]
[Black "Wahlund, Max"]
[Result "1/2-1/2"]
[TimeControl "90 minutes for 40 moves + 30 minutes for the rest of games + 30 seconds per move from move one."]
[BlackTitle "CM"]
[WhiteElo "1968"]
[BlackElo "2002"]

1. e4 {[%clk 01:30:56]} {[%emt 00:00:03]} e5 {[%clk 01:30:58]} {[%emt
00:00:03]} 2. Nf3 {[%clk 01:31:13]} {[%emt 00:00:12]} Nc6 {[%clk 01:31:26]}
{[%emt 00:00:02]} 3. Nc3 {[%clk 01:31:37]} {[%emt 00:00:07]} Nf6 {[%clk
01:31:54]} {[%emt 00:00:02]} 4. d4 {[%clk 01:31:59]} {[%emt 00:00:08]} exd4
{[%clk 01:32:21]} {[%emt 00:00:03]} 5. Nxd4 {[%clk 01:32:02]} {[%emt 00:00:27]}
Nxe4 {[%clk 01:32:42]} {[%emt 00:00:09]} 6. Nxe4 {[%clk 01:21:29]} {[%emt
00:11:03]} Qe7 {[%clk 01:33:02]} {[%emt 00:00:10]} 7. f3 {[%clk 01:13:34]}
{[%emt 00:08:25]} d5 {[%clk 01:33:29]} {[%emt 00:00:02]} 8. Nxc6 {[%clk
01:13:14]} {[%emt 00:00:51]} bxc6 {[%clk 01:33:44]} {[%emt 00:00:15]} 9. Qe2
{[%clk 01:12:24]} {[%emt 00:01:19]} dxe4 {[%clk 01:34:08]} {[%emt 00:00:06]} 10.
Qxe4 {[%clk 01:12:46]} {[%emt 00:00:08]} Qxe4+ {[%clk 01:34:33]} {[%emt
00:00:05]} 11. fxe4 {[%clk 01:13:11]} {[%emt 00:00:06]} Bd6 {[%clk 01:34:40]}
{[%emt 00:00:24]} 12. Bc4 {[%clk 01:10:08]} {[%emt 00:03:32]} O-O {[%clk
01:34:47]} {[%emt 00:00:23]} 13. O-O {[%clk 01:10:32]} {[%emt 00:00:05]} Bb7
{[%clk 01:29:40]} {[%emt 00:05:37]} 14. Bf4 {[%clk 01:08:52]} {[%emt 00:02:10]}
Rae8 {[%clk 01:27:30]} {[%emt 00:02:41]} 15. Rae1 {[%clk 01:08:38]} {[%emt
00:00:44]} Bc8 {[%clk 01:17:34]} {[%emt 00:10:26]} 16. e5 {[%clk 00:49:34]}
{[%emt 00:19:34]} Bc5+ {[%clk 01:17:28]} {[%emt 00:00:35]} 17. Be3 {[%clk
00:49:37]} {[%emt 00:00:27]} Bb6 {[%clk 01:13:52]} {[%emt 00:04:07]} 18. Bxb6
{[%clk 00:49:14]} {[%emt 00:00:53]} cxb6 {[%clk 01:12:27]} {[%emt 00:01:54]} 19.
Re3 {[%clk 00:48:33]} {[%emt 00:01:11]} Be6 {[%clk 01:11:46]} {[%emt 00:01:12]}
20. Bxe6 {[%clk 00:48:17]} {[%emt 00:00:45]} 1/2-1/2

[Event "Schack-SM 2023: Sverigemastarklassen"]
[Site "Helsingborg Arena, Mellersta Stenbocksgatan 14, Helsingborg, Sweden"]
[Date "2023.07.05"]
[Round "5.2"]
[White "Johansson, Linus"]
[Black "Hector, Jonny"]
[Result "1/2-1/2"]
[TimeControl "90 minutes for 40 moves + 30 minutes for the rest of the game + 30 seconds per move from move one."]
[WhiteTitle "IM"]
[BlackTitle "GM"]
[WhiteElo "2466"]
[BlackElo "2481"]

1. d4 {[%clk 01:30:56]} {[%emt 00:00:02]} d5 {[%clk 01:30:54]} {[%emt
00:00:05]} 2. c4 {[%clk 01:31:23]} {[%emt 00:00:04]} c6 {[%clk 01:31:13]}
{[%emt 00:00:10]} 3. Nf3 {[%clk 01:31:49]} {[%emt 00:00:05]} Nf6 {[%clk
01:31:30]} {[%emt 00:00:12]} 4. Qc2 {[%clk 01:32:14]} {[%emt 00:00:07]} g6
{[%clk 01:30:56]} {[%emt 00:01:03]} 5. cxd5 {[%clk 01:32:18]} {[%emt 00:00:28]}
cxd5 {[%clk 01:30:57]} {[%emt 00:00:27]} 6. Bf4 {[%clk 01:32:42]} {[%emt
00:00:07]} Nc6 {[%clk 01:30:57]} {[%emt 00:00:29]} 7. e3 {[%clk 01:33:02]}
{[%emt 00:00:10]} Nh5 {[%clk 01:30:11]} {[%emt 00:01:16]} 8. Bb5 {[%clk
01:33:24]} {[%emt 00:00:10]} Bd7 {[%clk 01:13:26]} {[%emt 00:17:13]} 9. Bxc6
{[%clk 01:32:07]} {[%emt 00:01:48]} bxc6 {[%clk 01:12:22]} {[%emt 00:01:33]} 10.
Nc3 {[%clk 01:32:14]} {[%emt 00:00:24]} Nxf4 {[%clk 01:10:42]} {[%emt
00:02:10]} 11. exf4 {[%clk 01:32:39]} {[%emt 00:00:06]} Bh6 {[%clk 01:06:02]}
{[%emt 00:05:08]} 12. Ne2 {[%clk 01:28:12]} {[%emt 00:04:58]} Bg4 {[%clk
01:00:35]} {[%emt 00:05:57]} 13. Qc3 {[%clk 01:22:16]} {[%emt 00:06:27]} O-O
{[%clk 00:57:40]} {[%emt 00:03:24]} 14. h3 {[%clk 01:20:41]} {[%emt 00:02:05]}
Bxf3 {[%clk 00:55:39]} {[%emt 00:02:31]} 15. Qxf3 {[%clk 01:21:01]} {[%emt
00:00:10]} Rb8 {[%clk 00:53:40]} {[%emt 00:02:29]} 16. Qc3 {[%clk 01:10:56]}
{[%emt 00:10:35]} Qd6 {[%clk 00:49:51]} {[%emt 00:04:18]} 17. g3 {[%clk
00:56:32]} {[%emt 00:14:55]} Rfc8 {[%clk 00:46:41]} {[%emt 00:03:40]} 18. Rc1
{[%clk 00:53:51]} {[%emt 00:03:11]} Bg7 {[%clk 00:45:28]} {[%emt 00:01:42]} 19.
Qd2 {[%clk 00:51:32]} {[%emt 00:02:49]} c5 {[%clk 00:45:24]} {[%emt 00:00:34]}
20. dxc5 {[%clk 00:50:26]} {[%emt 00:01:37]} Rxc5 {[%clk 00:45:33]} {[%emt
00:00:20]} 21. Rxc5 {[%clk 00:49:22]} {[%emt 00:01:35]} Qxc5 {[%clk 00:46:00]}
{[%emt 00:00:03]} 22. b3 {[%clk 00:49:18]} {[%emt 00:00:35]} Rc8 {[%clk
00:41:10]} {[%emt 00:05:19]} 23. O-O {[%clk 00:49:04]} {[%emt 00:00:44]} Qc2
{[%clk 00:41:02]} {[%emt 00:00:38]} 24. Rd1 {[%clk 00:48:16]} {[%emt 00:01:18]}
e6 {[%clk 00:40:24]} {[%emt 00:01:08]} 25. h4 {[%clk 00:36:56]} {[%emt
00:11:50]} h5 {[%clk 00:36:22]} {[%emt 00:04:32]} 26. Kf1 {[%clk 00:29:44]}
{[%emt 00:07:43]} a5 {[%clk 00:29:24]} {[%emt 00:07:29]} 27. Qc1 {[%clk
00:09:28]} {[%emt 00:20:45]} Bf6 {[%clk 00:13:41]} {[%emt 00:16:13]} 28. a4
{[%clk 00:08:24]} {[%emt 00:01:35]} Be7 {[%clk 00:09:02]} {[%emt 00:05:08]} 29.
Ke1 {[%clk 00:06:34]} {[%emt 00:02:20]} Bb4+ {[%clk 00:08:54]} {[%emt
00:00:38]} 30. Kf1 {[%clk 00:06:56]} {[%emt 00:00:08]} Rc7 {[%clk 00:05:28]}
{[%emt 00:03:56]} 31. Qxc2 {[%clk 00:03:53]} {[%emt 00:03:34]} Rxc2 {[%clk
00:05:55]} {[%emt 00:00:02]} 32. Rc1 {[%clk 00:04:15]} {[%emt 00:00:08]} Rd2
{[%clk 00:05:05]} {[%emt 00:01:19]} 33. Rc7 {[%clk 00:04:24]} {[%emt 00:00:21]}
d4 {[%clk 00:04:17]} {[%emt 00:01:17]} 34. Rd7 {[%clk 00:04:03]} {[%emt
00:00:52]} d3 {[%clk 00:04:15]} {[%emt 00:00:32]} 35. Nd4 {[%clk 00:03:33]}
{[%emt 00:00:59]} Rd1+ {[%clk 00:03:05]} {[%emt 00:01:40]} 36. Kg2 {[%clk
00:03:55]} {[%emt 00:00:08]} d2 {[%clk 00:02:49]} {[%emt 00:00:46]} 37. Nc2
{[%clk 00:01:37]} {[%emt 00:02:48]} Bc3 {[%clk 00:01:46]} {[%emt 00:01:33]} 38.
Ne3 {[%clk 00:00:49]} {[%emt 00:01:18]} Re1 {[%clk 00:01:28]} {[%emt 00:00:47]}
39. Rd3 {[%clk 00:00:52]} {[%emt 00:00:28]} Kf8 {[%clk 00:01:07]} {[%emt
00:00:51]} 40. Kf3 {[%clk 00:00:47]} {[%emt 00:00:35]} Ke7 {[%clk 00:01:03]}
{[%emt 00:00:33]} 41. Kg2 {[%clk 00:28:37]} {[%emt 00:02:40]} Bb4 {[%clk
00:28:55]} {[%emt 00:02:38]} 42. Kf3 {[%clk 00:28:17]} {[%emt 00:00:50]} Kf6
{[%clk 00:18:59]} {[%emt 00:10:27]} 43. Rd8 {[%clk 00:27:01]} {[%emt 00:01:46]}
Bc3 {[%clk 00:16:31]} {[%emt 00:02:58]} 44. Rd3 {[%emt 00:01:00]} Ke7 {[%clk
00:16:41]} 45. Kg2 {[%clk 00:26:46]} {[%emt 00:00:35]} f5 {[%clk 00:14:33]}
{[%emt 00:02:37]} 46. Kf3 {[%clk 00:26:39]} {[%emt 00:00:38]} Bb4 {[%clk
00:14:23]} {[%emt 00:00:40]} 47. Kg2 {[%clk 00:25:55]} {[%emt 00:01:13]} Kf7
{[%clk 00:11:22]} {[%emt 00:03:31]} 48. Kf3 {[%clk 00:25:46]} {[%emt 00:00:40]}
Kf6 {[%clk 00:11:33]} {[%emt 00:00:19]} 49. Rd8 {[%clk 00:25:08]} {[%emt
00:01:08]} Rb1 {[%clk 00:08:58]} {[%emt 00:03:05]} 50. Rd3 {[%clk 00:25:04]}
{[%emt 00:00:34]} Rb2 {[%clk 00:08:39]} {[%emt 00:00:49]} 51. Nd1 {[%clk
00:22:51]} {[%emt 00:02:43]} Rc2 {[%clk 00:08:09]} {[%emt 00:00:59]} 52. Ne3
{[%clk 00:22:08]} {[%emt 00:01:13]} Rc1 {[%clk 00:08:00]} {[%emt 00:00:39]} 53.
Ke2 {[%clk 00:21:48]} {[%emt 00:00:50]} Rb1 {[%clk 00:07:25]} {[%emt 00:01:05]}
54. Kf3 {[%clk 00:21:39]} {[%emt 00:00:39]} Kf7 {[%clk 00:06:37]} {[%emt
00:01:18]} 55. Ke2 {[%clk 00:21:04]} {[%emt 00:01:06]} Ke7 {[%clk 00:06:42]}
{[%emt 00:00:25]} 56. Kf3 {[%clk 00:21:02]} {[%emt 00:00:32]} Re1 {[%clk
00:06:21]} {[%emt 00:00:51]} 57. Kg2 {[%clk 00:21:13]} {[%emt 00:00:19]} Ra1
{[%clk 00:05:06]} {[%emt 00:01:45]} 58. Kf3 {[%clk 00:21:13]} {[%emt 00:00:30]}
Ra2 {[%clk 00:04:39]} {[%emt 00:00:57]} 59. Nd1 {[%clk 00:19:47]} {[%emt
00:01:56]} Ra1 {[%clk 00:03:34]} {[%emt 00:01:36]} 60. Ne3 {[%clk 00:19:54]}
{[%emt 00:00:23]} Re1 {[%clk 00:03:14]} {[%emt 00:00:50]} 61. Kg2 {[%clk
00:19:46]} {[%emt 00:00:38]} Bc5 {[%clk 00:03:05]} {[%emt 00:00:39]} 62. Rxd2
{[%clk 00:19:05]} {[%emt 00:01:12]} Bxe3 {[%clk 00:03:32]} {[%emt 00:00:02]} 63.
fxe3 {[%clk 00:19:26]} {[%emt 00:00:09]} Rxe3 {[%clk 00:03:57]} {[%emt
00:00:05]} 64. Rb2 {[%clk 00:19:32]} {[%emt 00:00:25]} Re4 {[%clk 00:03:45]}
{[%emt 00:00:42]} 65. Rd2 {[%clk 00:19:35]} {[%emt 00:00:27]} Re3 {[%clk
00:03:06]} {[%emt 00:01:09]} 66. Rb2 {[%clk 00:19:54]} {[%emt 00:00:11]} Re4
{[%clk 00:02:48]} {[%emt 00:00:48]} 67. Rd2 {[%clk 00:20:14]} {[%emt 00:00:10]}
Re3 {[%clk 00:02:31]} {[%emt 00:00:47]} 68. Rb2 {[%clk 00:20:35]} {[%emt
00:00:09]} Re4 {[%clk 00:02:56]} {[%emt 00:00:06]} 69. Rd2 {[%clk 00:21:00]}
{[%emt 00:00:06]} 1/2-1/2

[ePGN "0.1;DGT LiveChess/2.2.5"]

[Event "Schack-SM 2023: Mastarklassen-elit"]
[Site "Helsingborg Arena, Mellersta Stenbocksgatan 14, Helsingborg, Sweden"]
[Date "2023.07.05"]
[Round "5.1"]
[White "Soderstrom, Adrian"]
[Black "Olund, Joar"]
[Result "1/2-1/2"]
[TimeControl "90 minutes for 40 moves + 30 minutes for the rest of games + 30 seconds per move from move one."]
[WhiteTitle "FM"]
[BlackTitle "FM"]
[WhiteElo "2311"]
[BlackElo "2399"]

1. d4 {[%clk 01:30:57]} {[%emt 00:00:01]} d5 {[%clk 01:27:08]} {[%emt
00:03:54]} 2. c4 {[%clk 01:31:18]} {[%emt 00:00:08]} dxc4 {[%clk 01:27:09]}
{[%emt 00:00:30]} 3. e4 {[%clk 01:31:39]} {[%emt 00:00:08]} Nf6 {[%clk
01:27:36]} {[%emt 00:00:03]} 4. e5 {[%clk 01:32:04]} {[%emt 00:00:06]} Nd5
{[%clk 01:28:03]} {[%emt 00:00:02]} 5. Bxc4 {[%clk 01:32:29]} {[%emt 00:00:05]}
Bf5 {[%clk 01:28:31]} {[%emt 00:00:03]} 6. Qb3 {[%clk 01:08:51]} {[%emt
00:24:07]} c6 {[%clk 01:26:38]} {[%emt 00:02:24]} 7. Nc3 {[%clk 01:06:04]}
{[%emt 00:03:18]} e6 {[%clk 01:26:47]} {[%emt 00:00:20]} 8. Bxd5 {[%clk
00:56:53]} {[%emt 00:09:41]} cxd5 {[%clk 01:26:24]} {[%emt 00:00:53]} 9. Qxb7
{[%clk 00:56:32]} {[%emt 00:00:52]} Nd7 {[%clk 01:26:27]} {[%emt 00:00:26]} 10.
Qa6 {[%clk 00:53:41]} {[%emt 00:03:21]} Qb6 {[%clk 01:02:30]} {[%emt 00:24:27]}
11. Qxb6 {[%clk 00:46:42]} {[%emt 00:07:27]} Nxb6 {[%clk 01:02:28]} {[%emt
00:00:35]} 12. b3 {[%clk 00:44:09]} {[%emt 00:03:03]} a5 {[%clk 01:00:29]}
{[%emt 00:02:29]} 13. Nf3 {[%clk 00:35:30]} {[%emt 00:09:08]} a4 {[%clk
00:56:37]} {[%emt 00:04:23]} 14. Nxa4 {[%clk 00:35:06]} {[%emt 00:00:53]} Nxa4
{[%clk 00:56:43]} {[%emt 00:00:25]} 15. bxa4 {[%clk 00:35:35]} {[%emt
00:00:01]} Bd3 {[%clk 00:52:27]} {[%emt 00:04:46]} 16. Kd2 {[%clk 00:30:45]}
{[%emt 00:05:20]} Be4 {[%clk 00:51:41]} {[%emt 00:01:15]} 17. Bb2 {[%clk
00:25:24]} {[%emt 00:05:51]} Rxa4 {[%clk 00:48:26]} {[%emt 00:03:48]} 18. Rhc1
{[%clk 00:22:44]} {[%emt 00:03:07]} Kd7 {[%clk 00:42:27]} {[%emt 00:06:28]} 19.
Ke2 {[%clk 00:17:53]} {[%emt 00:05:23]} Bb4 {[%clk 00:23:16]} {[%emt 00:19:40]}
20. Nd2 {[%clk 00:16:00]} {[%emt 00:02:23]} Bxg2 {[%clk 00:13:25]} {[%emt
00:10:21]} 21. a3 {[%clk 00:15:05]} {[%emt 00:01:25]} Bxd2 {[%clk 00:10:38]}
{[%emt 00:03:17]} 22. Kxd2 {[%clk 00:15:25]} {[%emt 00:00:10]} Rb8 {[%clk
00:09:55]} {[%emt 00:01:14]} 23. Bc3 {[%clk 00:15:24]} {[%emt 00:00:30]} Rb3
{[%clk 00:08:30]} {[%emt 00:01:53]} 24. Rcb1 {[%clk 00:14:32]} {[%emt
00:01:24]} Raxa3 {[%clk 00:07:25]} {[%emt 00:01:35]} 25. Rxb3 {[%clk 00:14:47]}
{[%emt 00:00:15]} Rxb3 {[%clk 00:07:53]} {[%emt 00:00:01]} 26. Ra7+ {[%clk
00:15:10]} {[%emt 00:00:07]} Ke8 {[%clk 00:08:10]} {[%emt 00:00:12]} 27. Ra8+
{[%clk 00:15:37]} {[%emt 00:00:05]} Ke7 {[%clk 00:08:30]} {[%emt 00:00:08]} 28.
Ra7+ {[%clk 00:16:03]} {[%emt 00:00:05]} Ke8 {[%clk 00:08:55]} {[%emt
00:00:03]} 29. Ra8+ {[%clk 00:16:28]} {[%emt 00:00:06]} 1/2-1/2

[Event "Schack-SM 2023: Junior-SM"]
[Site "Helsingborg Arena, Mellersta Stenbocksgatan 14, Helsingborg, Sweden"]
[Date "2023.07.05"]
[Round "5.4"]
[White "Joensson, Oscar"]
[Black "Carlsson, Ludvig"]
[Result "0-1"]
[TimeControl "90 minutes for 40 moves + 30 minutes for the rest of the game + 30 seconds per move from move one."]
[BlackTitle "IM"]
[WhiteElo "2077"]
[BlackElo "2373"]

1. d4 {[%clk 01:30:58]} {[%emt 00:00:01]} Nf6 {[%clk 01:30:38]} {[%emt
00:00:22]} 2. c4 {[%clk 01:31:22]} {[%emt 00:00:06]} c5 {[%clk 01:31:01]}
{[%emt 00:00:07]} 3. Nf3 {[%clk 01:31:45]} {[%emt 00:00:06]} g6 {[%clk
01:31:14]} {[%emt 00:00:17]} 4. g3 {[%clk 01:31:06]} {[%emt 00:01:09]} Bg7
{[%clk 01:30:57]} {[%emt 00:00:47]} 5. Bg2 {[%clk 01:31:28]} {[%emt 00:00:07]}
cxd4 {[%clk 01:31:20]} {[%emt 00:00:08]} 6. Nxd4 {[%clk 01:31:21]} {[%emt
00:00:38]} Nc6 {[%clk 01:31:41]} {[%emt 00:00:09]} 7. Nxc6 {[%clk 01:16:40]}
{[%emt 00:15:11]} bxc6 {[%clk 01:30:24]} {[%emt 00:01:47]} 8. Nc3 {[%clk
01:15:34]} {[%emt 00:01:36]} O-O {[%clk 01:26:04]} {[%emt 00:04:50]} 9. O-O
{[%clk 01:15:26]} {[%emt 00:00:37]} Rb8 {[%clk 01:24:36]} {[%emt 00:01:58]} 10.
Rb1 {[%clk 01:14:18]} {[%emt 00:01:38]} c5 {[%clk 01:21:58]} {[%emt 00:03:07]}
11. b3 {[%clk 01:06:48]} {[%emt 00:08:01]} d6 {[%clk 01:21:00]} {[%emt
00:01:28]} 12. Bb2 {[%clk 01:06:03]} {[%emt 00:01:15]} Bb7 {[%clk 01:13:51]}
{[%emt 00:07:39]} 13. e4 {[%clk 00:54:45]} {[%emt 00:11:48]} Nd7 {[%clk
01:10:47]} {[%emt 00:03:34]} 14. Nd5 {[%clk 00:49:59]} {[%emt 00:05:16]} Bxb2
{[%clk 01:06:01]} {[%emt 00:05:17]} 15. Rxb2 {[%clk 00:50:21]} {[%emt
00:00:07]} Ne5 {[%clk 01:06:25]} {[%emt 00:00:06]} 16. f4 {[%clk 00:31:47]}
{[%emt 00:19:04]} Nc6 {[%clk 01:05:51]} {[%emt 00:01:03]} 17. f5 {[%clk
00:31:51]} {[%emt 00:00:27]} Nd4 {[%clk 01:03:59]} {[%emt 00:02:22]} 18. Rbf2
{[%clk 00:27:46]} {[%emt 00:04:34]} Bxd5 {[%clk 01:04:14]} {[%emt 00:00:16]} 19.
cxd5 {[%clk 00:19:29]} {[%emt 00:08:47]} f6 {[%clk 00:59:53]} {[%emt 00:04:51]}
20. h4 {[%clk 00:14:14]} {[%emt 00:05:45]} g5 {[%clk 00:55:28]} {[%emt
00:04:56]} 21. hxg5 {[%clk 00:14:03]} {[%emt 00:00:41]} Rf7 {[%clk 00:55:53]}
{[%emt 00:00:05]} 22. g6 {[%clk 00:11:07]} {[%emt 00:03:26]} hxg6 {[%clk
00:55:47]} {[%emt 00:00:36]} 23. fxg6 {[%clk 00:11:26]} {[%emt 00:00:11]} Rg7
{[%clk 00:56:13]} {[%emt 00:00:04]} 24. Qh5 {[%clk 00:10:38]} {[%emt 00:01:18]}
Qe8 {[%clk 00:55:52]} {[%emt 00:00:51]} 25. e5 {[%clk 00:09:56]} {[%emt
00:01:12]} f5 {[%clk 00:55:53]} {[%emt 00:00:29]} 26. Rf4 {[%clk 00:02:48]}
{[%emt 00:07:38]} Qxg6 {[%clk 00:55:48]} {[%emt 00:00:35]} 27. Qxg6 {[%clk
00:02:34]} {[%emt 00:00:43]} Rxg6 {[%clk 00:56:14]} {[%emt 00:00:05]} 28. Kf2
{[%clk 00:02:58]} {[%emt 00:00:06]} dxe5 {[%clk 00:56:23]} {[%emt 00:00:21]} 29.
Rh4 {[%clk 00:03:09]} {[%emt 00:00:19]} Ra6 {[%clk 00:56:15]} {[%emt 00:00:38]}
0-1